Cogmind - Beta 13 @@@ ROGUE MODE // 2024.04.18 @ 16:00:01 Player: KIWA Result: Smashed by cave-in Performance ------------- Evolutions (0) 0 Regions Visited (2) 400 Robots Destroyed (40) 200 Value Destroyed (734) 734 Prototype IDs (0) 0 Alien Tech Used (0) 0 Bonus (0) 0 TOTAL SCORE: 1334 Bonus ------- None Cogmind --------- Core Integrity 0/250 Matter 153/300 Energy 160/160 System Corruption 10% Temperature Cool (0) Movement Walking (260) Ox2 Location -10/Mines Parts ------- > --- POWER (1) -------- Light Nuclear Core > --- PROPULSION (2) --- Aluminum Leg > --- UTILITY (2) ------ Medium Storage Unit > --- WEAPON (2) ------- Shock Rifle Improved Light Cannon > --- INVENTORY (10) --- Machine Analyzer Advanced Visual Processing Unit Improved Terrain Scanner ECM Suite Hacking Suite Assault Rifle Light Assault Rifle Improved Light Cannon Grenade Launcher Improved Datajack Peak State ------------ > --- POWER ------------ Light Nuclear Core > --- PROPULSION ------- Aluminum Leg Aluminum Leg > --- UTILITY ---------- Medium Storage Unit Sensor Array > --- WEAPON ----------- Shock Rifle Improved Light Cannon > --- INVENTORY -------- Machine Analyzer Advanced Visual Processing Unit Improved Terrain Scanner ECM Suite Hacking Suite Assault Rifle Light Assault Rifle Improved Light Cannon Grenade Launcher Improved Datajack [Rating: 14] Favorites ----------- Power Light Ion Engine Engine Light Ion Engine Power Core Light Nuclear Core Propulsion Light Treads Treads Light Treads Leg Aluminum Leg Utility Medium Storage Unit Device ECM Suite Storage Medium Storage Unit Weapon Improved Light Cannon Energy Gun EM Pulse Gun Ballistic Gun Assault Rifle Ballistic Cannon Improved Light Cannon Launcher Grenade Launcher Build | -11 -10 -10 ------- Run | Yrd Mat Min Slots Evolved . | . . . Power . | . . . Propulsion . | . . . Utility . | . . . Weapon . | . . . Parts Attached 23 | . 14 9 Power 3 | . 1 2 Engine 2 | . 1 1 Core 1 | . . 1 Reactor . | . . . Propulsion 5 | . 3 2 Treads 3 | . 3 . Leg 2 | . . 2 Wheel . | . . . Hover . | . . . Flight . | . . . Utility 4 | . 3 1 Device 3 | . 2 1 Storage 1 | . 1 . Processor . | . . . Hackware . | . . . Protection . | . . . Artifact . | . . . Weapon 11 | . 7 4 Energy Gun 3 | . 2 1 Energy Cannon . | . . . Ballistic Gun 1 | . 1 . Ballistic Cannon 4 | . 3 1 Launcher 3 | . 1 2 Special Weapon . | . . . Impact Weapon . | . . . Slashing Weapon . | . . . Piercing Weapon . | . . . Special Melee Weapon . | . . . Unidentified Prototypes . | . . . Parts Lost 5 | . 1 4 Power 1 | . . 1 Propulsion 1 | . . 1 Utility 1 | . . 1 Weapon 2 | . 1 1 Highest Loss Streak 2 | . 1 2 To Critical Strikes . | . . . Average Slot Usage (%) 96 | . 92 99 Engine 6 | . 14 1 Core 6 | . . 12 Treads 14 | . 28 3 Leg 13 | . . 24 Device 10 | . 6 14 Storage 14 | . 14 14 Energy Gun 8 | . 2 13 Ballistic Cannon 10 | . 17 4 Launcher 8 | . 7 9 Naked Turns . | . . . Heaviest Build 24 | 11 21 24 Greatest Support 40 | 20 40 40 Greatest Overweight (x) 1 | . . 1 Average Overweight (x) . | . . . Largest Inventory Capacity 10 | . 10 10 Average Capacity 9 | . 8 10 Most Carried 10 | . 10 10 Average Carried 8 | . 7 9 Final Capacity 10 | 8 10 10 Final Carried 10 | 6 10 10 Class Distribution -------------------- 100% | Mutant Dominant Class ---------------- Mutant | -10/Materials Mutant | -10/Mines Resources | -11 -10 -10 ----------- Run | Yrd Mat Min Matter Collected 930 | 200 369 361 Remotely . | . . . Salvage Created 1080 | . 723 357 Parts 71 | . 44 27 Haulers Intercepted 2 | . 2 . Recyclers Shooed 1 | . 1 . Parts Field Recycled . | . . . Retrieved Matter . | . . . Parts Self-Destructed . | . . . Prevented . | . . . Kills | -11 -10 -10 ------- Run | Yrd Mat Min Combat Hostiles Destroyed 25 | . 9 16 Guns 3 | . . 3 Cannons 13 | . 9 4 AOE 9 | . . 9 Classes Destroyed 10 | . 8 2 Worker 3 | . 1 2 Builder 3 | . 2 1 Tunneler 3 | . . 3 Hauler 2 | . 2 . Recycler 3 | . 3 . Operator 1 | . 1 . Watcher 2 | . 2 . Swarmer 9 | . 2 7 Grunt 14 | . 7 7 Assembled 2 | . . 2 Best Kill Streak 8 | . 8 6 Combat Bots Only 3 | . 3 3 Max Kills in Single Turn 3 | . 3 2 Gunslinging . | . . . Exploded 2 | . . 2 Melee . | . . . Uniques/NPCs Destroyed . | . . . Combat | -11 -10 -10 -------- Run | Yrd Mat Min Hostile Shots Fired 152 | . 82 70 Missed 49 | . 27 22 Damage Taken 1304 | . 588 716 Core 273 | . 93 180 Absorbed by Shields . | . . . Core Remaining (%) 100 | 100 . . Volleys Fired 109 | . 51 58 Largest 2 | . 2 2 Hottest 79 | . 79 79 Shots Fired 203 | . 98 105 Gun 63 | . 14 49 Cannon 121 | . 77 44 Launcher 19 | . 7 12 Special . | . . . Kinetic 126 | . 82 44 Thermal . | . . . Explosive 19 | . 7 12 Electromagnetic 58 | . 9 49 Robot Hit Streak 7 | . 7 5 Robot Miss Streak 10 | . 10 8 Penetration Max . | . . . Secondary Targets . | . . . Shots Hit Robots 76 | . 47 29 Core Hits 53 | . 26 27 Critical Kills . | . . . Critical Parts Destroyed . | . . . Critical Strikes 4 | . 4 . Blast 4 | . 4 . Melee Attacks . | . . . Impact . | . . . Slashing . | . . . Piercing . | . . . Sneak Attacks . | . . . Combat Hostiles . | . . . Follow-up Attacks . | . . . Damage Inflicted 2330 | . 1181 1149 Guns 235 | . 71 164 Cannons 991 | . 726 265 Explosions 1098 | . 381 717 Melee . | . . . Ramming 6 | . 3 3 Kinetic 1021 | . 756 265 Thermal 106 | . . 106 Explosive 992 | . 381 611 Electromagnetic 205 | . 41 164 Impact . | . . . Slashing . | . . . Piercing . | . . . Highest Corruption . | . . . Average Corruption . | . . . Corruption Purged . | . . . Corruption Blocked . | . . . Overload Shots . | . . . Overflow Damage 48 | . 27 21 Projectiles 18 | . 14 4 Explosions 30 | . 13 17 Melee . | . . . Knockbacks 7 | . 6 1 Impact . | . . . Kinetic 7 | . 6 1 Secondary . | . . . Self-Inflicted Damage 68 | . . 68 Shots 2 | . . 2 Rammed 2 | . 1 1 Targets Rammed 2 | . 1 1 Kicked . | . . . Crushed . | . . . Highest Temperature 243 | . 243 111 Average Temperature 52 | . 70 37 Received Heat Transfer 291 | . 237 54 Effects 3 | . 3 . Energy Bleed 1 | . 1 . Interference 2 | . 2 . Siege Activations . | . . . Robots Corrupted . | . . . Combat Hostiles . | . . . Parts Fried . | . . . Impact Corruptions . | . . . Robots Melted . | . . . Combat Hostiles . | . . . Parts Melted . | . . . Heat Transferred 100 | . . 100 Parts Sabotaged . | . . . Parts Stolen . | . . . Parts Stripped . | . . . Power Chain Reactions 2 | . . 2 Alert | -11 -10 -10 ------- Run | Yrd Mat Min Peak Influence 327 | . 327 220 Initial 69 | . . 69 Average 147 | . 181 119 Maximum Alert Level 1 | . 1 1 Low Security (%) 74 | . 43 98 Level 1 25 | . 56 1 Level 2 . | . . . Level 3 . | . . . Level 4 . | . . . Level 5 . | . . . High Security . | . . . Max Security . | . . . Squads Dispatched 2 | . 1 1 Investigation 1 | . . 1 Extermination . | . . . Reinforcement 1 | . 1 . Assault . | . . . Garrison . | . . . Intercept . | . . . Searches Triggered . | . . . Construction Impeded . | . . . Haulers Reinforced . | . . . Active Scanning Responses . | . . . Cargo Convoy Interrupts . | . . . Stealth | -11 -10 -10 --------- Run | Yrd Mat Min Distress Signals 3 | . 3 . Communications Jammed . | . . . Distress Signals . | . . . Times Spotted 43 | . 26 17 Peak Tracking Total 6 | . 6 3 Tactical Retreats 12 | . 9 3 Traps | -11 -10 -10 ------- Run | Yrd Mat Min Traps Triggered . | . . . Indirectly . | . . . Trap Hack Attempts . | . . . Triggered . | . . . Disarmed . | . . . Reprogrammed . | . . . Reused . | . . . Traps Extracted . | . . . Installed . | . . . Triggered . | . . . Machines | -11 -10 -10 ---------- Run | Yrd Mat Min Machines Disabled 2 | . 2 . Max in Single Turn 1 | . 1 . Machines Repaired . | . . . Machines Dismantled . | . . . Machines Sabotaged . | . . . Overloaded Fab Kills . | . . . Hacking | -11 -10 -10 --------- Run | Yrd Mat Min Machines Accessed 3 | . 1 2 Terminals 2 | . 1 1 Fabricators . | . . . Repair Stations . | . . . Recycling Units . | . . . Scanalyzers . | . . . Garrison Access . | . . . Total Hacks 3 | . 1 2 Successful 3 | . 1 2 Failed . | . . . Catastrophic . | . . . Database Lockouts . | . . . Manual . | . . . Terminals 2 | . 1 1 Fabricators . | . . . Repair Stations . | . . . Recycling Units . | . . . Scanalyzers . | . . . Garrison Access . | . . . Terminal Hacks 3 | . 1 2 Open Door 1 | . . 1 Alert Level 1 | . 1 . Zone Layout 1 | . . 1 Fabricator Hacks . | . . . Repair Station Hacks . | . . . Recycling Unit Hacks . | . . . Scanalyzer . | . . . Garrison Access Hacks . | . . . Unauthorized Hacks . | . . . Terminals . | . . . Fabricators . | . . . Repair Stations . | . . . Recycling Units . | . . . Scanalyzers . | . . . Garrison Access . | . . . Data Cores Recovered . | . . . Used . | . . . Hacking Detections . | . . . Full Trace Events . | . . . Feedback Events . | . . . Feedback Blocked . | . . . Robot Schematics Acquired . | . . . Robots Built . | . . . Authchips . | . . . Time . | . . . Total Robot Build Rating . | . . . Part Schematics Acquired . | . . . Parts Built . | . . . Authchips . | . . . Time . | . . . Total Part Build Rating . | . . . Parts Repaired . | . . . Time . | . . . Parts Recycled . | . . . Recycled Matter . | . . . Retrieved Matter . | . . . Retrieved Components . | . . . Parts Scanalyzed . | . . . Part Schematics Acquired . | . . . Parts Damaged . | . . . Bothacking | -11 -10 -10 ------------ Run | Yrd Mat Min Used RIF Installer . | . . . Robots Hacked . | . . . Non-combat . | . . . Combat . | . . . Robot Hacks Applied . | . . . Relay Couplers Released . | . . . Fabnet Peak Effective % . | . . . Robots Rewired . | . . . Allies Hacked . | . . . Hacks Repelled . | . . . Allies | -11 -10 -10 -------- Run | Yrd Mat Min Total Allies . | . . . Largest Group . | . . . Highest-Rated Group . | . . . Highest-Rated Ally . | . . . Total Orders . | . . . Ally Attacks . | . . . Total Damage . | . . . Kills . | . . . Allies Corrupted . | . . . Allies Melted . | . . . Intel | -11 -10 -10 ------- Run | Yrd Mat Min Robot Analysis Total . | . . . Derelict Logs Recovered 3 | . . 3 Drone Launches . | . . . Drone Recoveries . | . . . Exploration | -11 -10 -10 ------------- Run | Yrd Mat Min Turns Passed 1792 | . 805 987 Spaces Moved 748 | 1 376 371 Core . | . . . Treads 424 | . 376 48 Legs 324 | 1 . 323 Wheels . | . . . Hover . | . . . Flight . | . . . Fastest Speed 120 | 120 160 160 Average Speed 172 | 120 160 186 Slowest Speed 190 | 120 160 190 Overloaded Moves . | . . . Propulsion Burnouts . | . . . Robots Hopped . | . . . Cave-ins Triggered 1 | . . 1 Exploration Rate (%) 47 | 3 62 76 Regions Visited 2 Branch Regions 1 Pre-discovered Areas 1 | . . 1 Known Exits Taken . | . . . Unknown Exits Taken 2 | 1 1 . Scrap Searched 1 | . . 1 Spaces Dug 11 | . 11 . Terrain Destroyed 128 | . 38 90 Melee . | . . . Projectile 6 | . 4 2 AOE 122 | . 34 88 Terrain Rammed . | . . . Walls Destroyed . | . . . Machines Disabled . | . . . Actions | -11 -10 -10 --------- Run | Yrd Mat Min Total 1040 | . 478 562 Wait 138 | . 28 110 Move 746 | . 375 371 Hop . | . . . Pick Up 13 | . 6 7 Fast Attach 1 | . 1 . Attach 3 | . 1 2 Detach . | . . . Swap 19 | . 12 7 Drop 9 | . 3 6 Fire 109 | . 51 58 Melee . | . . . Ram . | . . . Kick . | . . . Crush 2 | . 1 1 Escape Stasis . | . . . Rewire . | . . . Trap . | . . . Miscellaneous . | . . . Route ------- -11/Scrapyard -10/Materials (discovered 3 exits: [*Mat x2] / *Min) -10/Mines (discovered 1 exit: [*Mat]) History --------- Turn | Location | Event 1 | -11/Scrapyard | Discovered new exit (range 0) 1 | -11/Scrapyard | Entered Materials 233 | -10/Materials | Discovered new exit (range 14) 313 | -10/Materials | Build established: Mutant 401 | -10/Materials | Discovered new exit (range 15) 656 | -10/Materials | Discovered new exit (range 11) 806 | -10/Materials | Entered Mines 888 | -10/Mines | Met a Derelict shopkeep closing up shop 1170 | -10/Mines | Core integrity fell below 50% 1396 | -10/Mines | Discovered new exit (range 12) 1536 | -10/Mines | Learned Materials terminal intel 1589 | -10/Mines | Learned location of Zion (-6) 1606 | -10/Mines | Excavation squad dispatched 1606 | -10/Mines | A large section of the Mines collapsed 1689 | -10/Mines | Core integrity fell below 20% 1794 | -10/Mines | Crushed by falling debris 1794 | -10/Mines | Smashed by cave-in Last Messages --------------- 01769_ T-07 Excavator is excavating. 01770_ G-34 Mercenary destroyed. 01770_ T-07 Excavator destroyed. 01773_ T-07 Excavator is excavating. 01773_ Acquired 56 matter. 01777_ T-07 Excavator is excavating. 01779_ Acquired Ion Engine. 01782_ T-07 Excavator is excavating. 01783_ Acquired 11 matter. 01784_ U-05 Engineer lays Concrete. 01785_ U-05 Engineer builds a Wall. 01785_ T-07 Excavator is excavating. 01790_ Dropped Ion Engine. 01791_ Acquired Imp. Terrain Scanner. 01794_ The unstable cave ceiling collapses. 01794_ Crushed by falling debris. 01794_ Sensor Array destroyed. 01794_ System corrupted by crushing effect (+5). 01794_ Aluminum Leg destroyed. 01794_ System corrupted by crushing effect (+5). Map ----- +----------------------------------------------------+ | # =! ### ### #?# ## #??? | | = # ### """ #?## ## #??? | | [ # """ #####??### #??? | | ! # """ #????????# ####??? | | # # #????????# #?????? | | ######## ##########??????? #?????? | | ##??????########???????????????# #?????? | | #??????????????????????????????#####?????? | | ##????????????????????????????????????????? | | ##?????????????????????????????????????????? | | #??????????????????????????????????????????? | | #??????????????????????????????????????????? | | #??????????????????????????????????????????? | | #??????????????????????????????????????????? | | ??????????????????????????????????????????? | | ??????????????????????????????????????????? | | ??????????????????????????????????????????? | | ??????????????????????????????????????????? | | ##????????????????##???#####???????????????? | | ??????????????????#;#### ##??????????????? | | ????##????????????# #??????????????? | | ????? ????????????# #??????????????? | | ?????# ???????????# ##????????####??? | | ?????? ###?####???# % #######?## ##?? | | ??????? #?# ##??# # # ### #?? | | ???????# ### #??# ?# @*= ; ##?? | | ??###### ## #??# # [ ;; ##??? | | ### #??# ##### = t ##???? | | """ #### #???# =!=### ##????? | | ### ### """ ? #???### ##??###?????? | | ## ### """ ######???????????? | | # ## ##### #### #????????????????? | | ### ##???# #?????????????????????? | | ### ##???? #?????????????????????? | | ### ##????? ?????????????????????? | | #####?????? ?????????????????????? | | #?????????? ????????????????????? | | ##????????? ## ????????????????????? | | ## ##????????#??#????????????????????? | | #### #????????????????????????????????? | | ##??## #????????????????????????????????? | | #????# #????????????????????????????????? | | #????# ##???????????????????????????????? | | #????## #???????????????????????????????? | | ###????## #???????????????????????????????? | | ??????## #???????????????????????????????? | | ??????# #???????????????????????????????? | | ?????# ##???????????????????????????????? | | ?????## ##????????????????????????????????? | | ??????####?????????????????????????????????? | +----------------------------------------------------+ Best States ------------- Heat Dissipation 25 Energy Generation 14 Energy Capacity 160 Matter Stores 300 Matter Capacity 300 Sight Range 16 Robot Scan Range 14 Terrain Scan Density 10 ECM Strength 1 Evasion (%) 40 Recoil Reduction 2 Item Schematics ----------------- None Robot Schematics ------------------ None Fabricated ------------ Nothing Alien Tech Used ----------------- None Achievements -------------- None Challenges ------------ None Game ------ Seed TransportSpikedScanner Manual? 0 Play Time 00:16:03 Cumulative 14.1 hours Start 2024.04.18 @ 15:46:30 End 2024.04.18 @ 16:00:01 Sessions 1 Manual Loads 0 Difficulty Rogue Special Mode None Game No. 32 Rogue 32 Adventurer 0 Explorer 0 Win Type - Total 0 Types 0/0/0/0/0/0/0/0/0 Lore% 16 Gallery% 24 Achievement% 19 Wizard Run 0 Options --------- Layout 1 ASCII 0 Keyboard 0 Movement Mouse Keybinds 0 Fullscreen 2 Font 48/Smallcaps Map View 50x35 Zoom Use 0% Tactical HUD 1 Map Filters NONE Filters NONE Steam 1 RUN: 94b623f0-71f0-484c-b639-d9ae25091bc9